[Event "*** Titled Tuesday Blitz"]
[Site "Chess.com"]
[Date "2020.11.24"]
[Round "6"]
[White "Msb2"]
[Black "Evgeny81"]
[Result "1-0"]
[WhiteElo "2916"]
[BlackElo "2720"]
[TimeControl "180+1"]
[EndTime "11:22:47 PST"]
[Termination "Msb2 won on time"]

1. d4 {[%clk 0:03:00.9]} 1... d5 {[%clk 0:02:59.8]} 2. Nc3 {[%clk 0:02:58.4]}
2... Nf6 {[%clk 0:02:57.7]} 3. Bf4 {[%clk 0:02:58.4]} 3... e6 {[%clk 0:02:52.7]}
4. Nb5 {[%clk 0:02:57.6]} 4... Na6 {[%clk 0:02:52.7]} 5. e3 {[%clk 0:02:57.9]}
5... Be7 {[%clk 0:02:51.3]} 6. Nf3 {[%clk 0:02:54.5]} 6... O-O {[%clk 0:02:51]}
7. Be2 {[%clk 0:02:52.3]} 7... c6 {[%clk 0:02:47.4]} 8. Nc3 {[%clk 0:02:52.2]}
8... c5 {[%clk 0:02:47.6]} 9. Nb5 {[%clk 0:02:48.4]} 9... Bd7 {[%clk 0:02:46.2]}
10. a4 {[%clk 0:02:47.8]} 10... cxd4 {[%clk 0:02:31.8]} 11. exd4 {[%clk
0:02:46.8]} 11... Ne4 {[%clk 0:02:29.6]} 12. c3 {[%clk 0:02:42.2]} 12... Bc6
{[%clk 0:02:22.2]} 13. O-O {[%clk 0:02:36]} 13... Nd6 {[%clk 0:02:21.9]} 14. Ne5
{[%clk 0:02:31.5]} 14... Nc7 {[%clk 0:02:20.6]} 15. Na3 {[%clk 0:02:22.2]} 15...
Qe8 {[%clk 0:02:10.4]} 16. Nb1 {[%clk 0:02:05.2]} 16... f6 {[%clk 0:01:56.3]}
17. Nxc6 {[%clk 0:01:59.8]} 17... Qxc6 {[%clk 0:01:57.2]} 18. Nd2 {[%clk
0:01:59.9]} 18... Nf7 {[%clk 0:01:55]} 19. Bg3 {[%clk 0:01:52.2]} 19... Bd6
{[%clk 0:01:52.9]} 20. f4 {[%clk 0:01:52.1]} 20... f5 {[%clk 0:01:43.7]} 21. Nf3
{[%clk 0:01:50.9]} 21... Qb6 {[%clk 0:01:43.3]} 22. b4 {[%clk 0:01:35.9]} 22...
Ne8 {[%clk 0:01:42.6]} 23. Ne5 {[%clk 0:01:24.5]} 23... Qc7 {[%clk 0:01:42.3]}
24. Rc1 {[%clk 0:01:20.5]} 24... Nf6 {[%clk 0:01:41]} 25. Bd3 {[%clk 0:01:21]}
25... Ne4 {[%clk 0:01:37.5]} 26. Bxe4 {[%clk 0:01:21.1]} 26... fxe4 {[%clk
0:01:29.4]} 27. Qg4 {[%clk 0:01:15.5]} 27... Rae8 {[%clk 0:01:14.4]} 28. Qe2
{[%clk 0:01:07.5]} 28... Nh6 {[%clk 0:01:10.8]} 29. c4 {[%clk 0:01:06]} 29...
Bxb4 {[%clk 0:01:05.5]} 30. cxd5 {[%clk 0:01:05]} 30... Qd6 {[%clk 0:01:03.5]}
31. dxe6 {[%clk 0:00:58.6]} 31... Rxe6 {[%clk 0:00:41]} 32. Qxe4 {[%clk
0:00:55.7]} 32... Rd8 {[%clk 0:00:29.7]} 33. Bf2 {[%clk 0:00:50.8]} 33... Re7
{[%clk 0:00:22.6]} 34. Bh4 {[%clk 0:00:47.7]} 34... Bd2 {[%clk 0:00:12.2]} 35.
Bxe7 {[%clk 0:00:43.5]} 35... Qxe7 {[%clk 0:00:11.9]} 36. Rcd1 {[%clk
0:00:42.6]} 36... Bc3 {[%clk 0:00:11.7]} 37. Kh1 {[%clk 0:00:40.7]} 37... Ba5
{[%clk 0:00:07]} 38. f5 {[%clk 0:00:39.5]} 38... Bc7 {[%clk 0:00:05.5]} 39. Rde1
{[%clk 0:00:29]} 39... Qd6 {[%clk 0:00:05.2]} 40. Qc2 {[%clk 0:00:28]} 40... Rf8
{[%clk 0:00:05.3]} 41. Qb3+ {[%clk 0:00:24.5]} 41... Kh8 {[%clk 0:00:05.6]} 42.
Qxb7 {[%clk 0:00:25.2]} 42... Qd8 {[%clk 0:00:02]} 43. h3 {[%clk 0:00:21.1]} 1-0

[Event "*** Titled Tuesday Blitz"]
[Site "Chess.com"]
[Date "2020.11.24"]
[Round "6"]
[White "Unknown_IM"]
[Black "Susal_De_Silva"]
[Result "0-1"]
[WhiteElo "2392"]
[BlackElo "2533"]
[TimeControl "180+1"]
[EndTime "11:22:48 PST"]
[Termination "Susal_De_Silva won by resignation"]

1. e4 {[%clk 0:03:00.7]} 1... e5 {[%clk 0:03:00.1]} 2. Nf3 {[%clk 0:02:59.7]}
2... Nc6 {[%clk 0:03:00.2]} 3. Bb5 {[%clk 0:03:00.1]} 3... a6 {[%clk 0:03:00.6]}
4. Ba4 {[%clk 0:02:59.8]} 4... Nf6 {[%clk 0:03:00.9]} 5. d3 {[%clk 0:03:00.2]}
5... b5 {[%clk 0:03:00.4]} 6. Bb3 {[%clk 0:03:00.5]} 6... Be7 {[%clk 0:03:01.3]}
7. Bd5 {[%clk 0:03:00.6]} 7... Bd6 {[%clk 0:02:41.9]} 8. Bg5 {[%clk 0:02:59]}
8... O-O {[%clk 0:02:39.9]} 9. O-O {[%clk 0:02:56.6]} 9... Bb7 {[%clk
0:02:34.8]} 10. a3 {[%clk 0:02:53.7]} 10... h6 {[%clk 0:02:32.8]} 11. Bh4 {[%clk
0:02:52.9]} 11... g5 {[%clk 0:02:22.3]} 12. Bg3 {[%clk 0:02:51.2]} 12... Nxd5
{[%clk 0:02:18.9]} 13. exd5 {[%clk 0:02:50.4]} 13... Ne7 {[%clk 0:02:19.8]} 14.
Bxe5 {[%clk 0:02:43.1]} 14... Bxe5 {[%clk 0:02:15.8]} 15. Nxe5 {[%clk 0:02:44]}
15... Nxd5 {[%clk 0:02:15.5]} 16. Qh5 {[%clk 0:02:40.9]} 16... Kg7 {[%clk
0:02:13.9]} 17. g3 {[%clk 0:02:17.5]} 17... d6 {[%clk 0:01:59.1]} 18. Ng4 {[%clk
0:02:15.5]} 18... Rh8 {[%clk 0:01:55.4]} 19. c4 {[%clk 0:02:08.1]} 19... Ne7
{[%clk 0:01:49.3]} 20. Ne3 {[%clk 0:02:00.6]} 20... Qd7 {[%clk 0:01:45.4]} 21.
Nc3 {[%clk 0:01:58.5]} 21... Ng6 {[%clk 0:01:36.7]} 22. cxb5 {[%clk 0:01:46]}
22... axb5 {[%clk 0:01:35.6]} 23. d4 {[%clk 0:01:46.5]} 23... Rae8 {[%clk
0:01:31.2]} 24. d5 {[%clk 0:01:43.7]} 24... c6 {[%clk 0:01:29.9]} 25. Rad1
{[%clk 0:01:40.6]} 25... c5 {[%clk 0:01:25.1]} 26. b4 {[%clk 0:01:36]} 26... c4
{[%clk 0:01:23.3]} 27. Ne2 {[%clk 0:01:35.6]} 27... Ne5 {[%clk 0:01:15.7]} 28.
Nd4 {[%clk 0:01:35.7]} 28... Bc8 {[%clk 0:01:00.4]} 29. Nef5+ {[%clk 0:01:27.1]}
29... Qxf5 {[%clk 0:01:00.1]} 30. Nxf5+ {[%clk 0:01:25.5]} 30... Bxf5 {[%clk
0:01:01]} 31. f4 {[%clk 0:01:12.3]} 31... Bg4 {[%clk 0:00:57.1]} 32. Qxg4 {[%clk
0:00:44.8]} 32... Nxg4 {[%clk 0:00:56.2]} 33. Rd4 {[%clk 0:00:45.7]} 33... Ne3
{[%clk 0:00:54.4]} 34. Rf2 {[%clk 0:00:45.1]} 34... g4 {[%clk 0:00:53.5]} 35. f5
{[%clk 0:00:44.6]} 35... c3 {[%clk 0:00:45.6]} 36. f6+ {[%clk 0:00:43.9]} 36...
Kg6 {[%clk 0:00:42.9]} 37. Re2 {[%clk 0:00:20.5]} 37... c2 {[%clk 0:00:41.3]}
38. Re1 {[%clk 0:00:21.3]} 38... Nd1 {[%clk 0:00:37.8]} 39. Rf1 {[%clk
0:00:19.1]} 39... h5 {[%clk 0:00:25.3]} 40. Rdxd1 {[%clk 0:00:14.3]} 40...
cxd1=Q {[%clk 0:00:25]} 41. Rxd1 {[%clk 0:00:15.2]} 41... Re2 {[%clk 0:00:25.2]}
42. Rf1 {[%clk 0:00:15.9]} 42... Rc8 {[%clk 0:00:25.1]} 43. h4 {[%clk
0:00:13.9]} 43... gxh3 {[%clk 0:00:24.2]} 44. g4 {[%clk 0:00:13.9]} 44... hxg4
{[%clk 0:00:23.6]} 45. a4 {[%clk 0:00:14.4]} 45... Rcc2 {[%clk 0:00:23.8]} 46.
Rf4 {[%clk 0:00:13.5]} 46... Rg2+ {[%clk 0:00:24]} 0-1

[Event "*** Titled Tuesday Blitz"]
[Site "Chess.com"]
[Date "2020.11.24"]
[Round "6"]
[White "mbojan"]
[Black "Piotrek1979"]
[Result "1/2-1/2"]
[WhiteElo "2694"]
[BlackElo "2517"]
[TimeControl "180+1"]
[EndTime "11:22:51 PST"]
[Termination "Game drawn by repetition"]

1. Nf3 {[%clk 0:03:00.9]} 1... Nf6 {[%clk 0:02:54]} 2. g3 {[%clk 0:03:00.2]}
2... g6 {[%clk 0:02:53.8]} 3. b3 {[%clk 0:03:00.7]} 3... Bg7 {[%clk 0:02:54.7]}
4. Bb2 {[%clk 0:03:01.4]} 4... O-O {[%clk 0:02:54.4]} 5. Bg2 {[%clk 0:03:01.8]}
5... d6 {[%clk 0:02:54.5]} 6. d4 {[%clk 0:03:01.1]} 6... c5 {[%clk 0:02:53.1]}
7. O-O {[%clk 0:02:53.5]} 7... Ne4 {[%clk 0:02:52.7]} 8. Nbd2 {[%clk 0:02:49.5]}
8... f5 {[%clk 0:02:52]} 9. Qc1 {[%clk 0:02:29.7]} 9... Qa5 {[%clk 0:02:22.4]}
10. Nc4 {[%clk 0:02:18]} 10... Qc7 {[%clk 0:02:21.6]} 11. d5 {[%clk 0:02:16]}
11... Bxb2 {[%clk 0:02:12.5]} 12. Nxb2 {[%clk 0:02:16.9]} 12... e5 {[%clk
0:02:01.6]} 13. dxe6 {[%clk 0:02:15.3]} 13... Bxe6 {[%clk 0:02:00.9]} 14. c4
{[%clk 0:02:07.2]} 14... Nc6 {[%clk 0:01:59.9]} 15. Nd3 {[%clk 0:02:07]} 15...
Rae8 {[%clk 0:01:54.7]} 16. Nf4 {[%clk 0:01:34.9]} 16... Qg7 {[%clk 0:01:53.7]}
17. Nxe6 {[%clk 0:01:26.6]} 17... Rxe6 {[%clk 0:01:52.7]} 18. Ng5 {[%clk
0:01:06.2]} 18... Re7 {[%clk 0:01:48.4]} 19. Nxe4 {[%clk 0:00:59.8]} 19... fxe4
{[%clk 0:01:47.7]} 20. Qc2 {[%clk 0:00:59.9]} 20... Nd4 {[%clk 0:01:42.5]} 21.
Qd2 {[%clk 0:00:58.1]} 21... Rxf2 {[%clk 0:01:31.7]} 22. Rxf2 {[%clk 0:00:44.6]}
22... e3 {[%clk 0:01:31.9]} 23. Bd5+ {[%clk 0:00:44.7]} 23... Kh8 {[%clk
0:01:31.3]} 24. Qe1 {[%clk 0:00:36.9]} 24... exf2+ {[%clk 0:01:28.7]} 25. Qxf2
{[%clk 0:00:31.5]} 25... Rxe2 {[%clk 0:01:15.9]} 26. Qf1 {[%clk 0:00:18.5]}
26... Qe7 {[%clk 0:00:46.3]} 27. Rd1 {[%clk 0:00:12.7]} 27... h5 {[%clk
0:00:43.5]} 28. Kh1 {[%clk 0:00:10.6]} 28... Kg7 {[%clk 0:00:43]} 29. Qf4 {[%clk
0:00:07.4]} 29... Re1+ {[%clk 0:00:34.6]} 30. Rxe1 {[%clk 0:00:07.4]} 30...
Qxe1+ {[%clk 0:00:35.5]} 31. Kg2 {[%clk 0:00:08]} 31... Qe2+ {[%clk 0:00:34.2]}
32. Kh3 {[%clk 0:00:06.3]} 32... Qe7 {[%clk 0:00:32.9]} 33. Kg2 {[%clk
0:00:05.7]} 33... a6 {[%clk 0:00:32]} 34. Kh3 {[%clk 0:00:04.5]} 34... b5 {[%clk
0:00:32.1]} 35. cxb5 {[%clk 0:00:03.8]} 35... axb5 {[%clk 0:00:32.4]} 36. a4
{[%clk 0:00:04.5]} 36... bxa4 {[%clk 0:00:31.9]} 37. bxa4 {[%clk 0:00:05.4]}
37... g5 {[%clk 0:00:31.5]} 38. Qf2 {[%clk 0:00:04.6]} 38... Kh6 {[%clk
0:00:16.1]} 39. a5 {[%clk 0:00:04.5]} 39... Qe5 {[%clk 0:00:16.2]} 40. Qf8+
{[%clk 0:00:03.9]} 40... Kg6 {[%clk 0:00:14.4]} 41. Qf7+ {[%clk 0:00:02.9]}
41... Kh6 {[%clk 0:00:14.1]} 42. Qf8+ {[%clk 0:00:03.5]} 42... Kg6 {[%clk
0:00:13.7]} 43. Bf7+ {[%clk 0:00:04.2]} 43... Kf5 {[%clk 0:00:11.5]} 44. Bd5+
{[%clk 0:00:04.5]} 44... Kg6 {[%clk 0:00:11.2]} 1/2-1/2

[Event "*** Titled Tuesday Blitz"]
[Site "Chess.com"]
[Date "2020.11.24"]
[Round "6"]
[White "LiderChessAcademy"]
[Black "beautroll"]
[Result "1-0"]
[WhiteElo "2554"]
[BlackElo "2410"]
[TimeControl "180+1"]
[EndTime "11:22:52 PST"]
[Termination "LiderChessAcademy won by resignation"]

1. d4 {[%clk 0:03:00.9]} 1... Nf6 {[%clk 0:02:59.8]} 2. c4 {[%clk 0:03:00.6]}
2... g6 {[%clk 0:02:59.5]} 3. Nf3 {[%clk 0:03:00.6]} 3... Bg7 {[%clk 0:02:59.5]}
4. g3 {[%clk 0:03:00.6]} 4... O-O {[%clk 0:02:59.2]} 5. Bg2 {[%clk 0:03:01.2]}
5... d5 {[%clk 0:02:59.3]} 6. O-O {[%clk 0:03:01]} 6... Nc6 {[%clk 0:02:55.8]}
7. b3 {[%clk 0:02:47.7]} 7... dxc4 {[%clk 0:02:32]} 8. bxc4 {[%clk 0:02:46.1]}
8... Ne4 {[%clk 0:02:23]} 9. Bb2 {[%clk 0:02:43.7]} 9... Na5 {[%clk 0:02:14.6]}
10. Qc2 {[%clk 0:02:22.1]} 10... Bf5 {[%clk 0:02:04.5]} 11. g4 {[%clk
0:02:21.1]} 11... Ng3 {[%clk 0:01:29.8]} 12. gxf5 {[%clk 0:02:19.6]} 12... Nxf1
{[%clk 0:01:30.2]} 13. Kxf1 {[%clk 0:02:18.7]} 13... Nc6 {[%clk 0:01:27.9]} 14.
e3 {[%clk 0:02:14.3]} 14... e6 {[%clk 0:01:24.9]} 15. Nbd2 {[%clk 0:01:58]}
15... gxf5 {[%clk 0:01:20.4]} 16. Rd1 {[%clk 0:01:47.5]} 16... Qe7 {[%clk
0:01:19.5]} 17. d5 {[%clk 0:01:41.1]} 17... Nb4 {[%clk 0:01:12.9]} 18. Qb3
{[%clk 0:01:38.6]} 18... e5 {[%clk 0:01:08]} 19. Nxe5 {[%clk 0:01:18.5]} 19...
Bxe5 {[%clk 0:01:06.3]} 20. Bxe5 {[%clk 0:01:18.5]} 20... Qxe5 {[%clk
0:01:01.1]} 21. Qxb4 {[%clk 0:01:18.5]} 21... Kh8 {[%clk 0:00:58]} 22. Nf3
{[%clk 0:01:15.1]} 22... Qg7 {[%clk 0:00:54.3]} 23. Qc5 {[%clk 0:00:54.3]} 23...
Rg8 {[%clk 0:00:52.2]} 24. Qd4 {[%clk 0:00:54.4]} 24... f6 {[%clk 0:00:52.6]}
25. Bh3 {[%clk 0:00:54.7]} 25... Qg6 {[%clk 0:00:47.8]} 26. Qf4 {[%clk
0:00:50.7]} 26... Raf8 {[%clk 0:00:42]} 27. Bxf5 {[%clk 0:00:49.9]} 27... Qg2+
{[%clk 0:00:39.3]} 28. Ke2 {[%clk 0:00:49.9]} 28... Qg7 {[%clk 0:00:34.4]} 29.
Qh4 {[%clk 0:00:40.7]} 29... Qe7 {[%clk 0:00:31.8]} 30. c5 {[%clk 0:00:31.9]}
30... Rg7 {[%clk 0:00:30.8]} 31. d6 {[%clk 0:00:30]} 31... cxd6 {[%clk
0:00:31.7]} 32. cxd6 {[%clk 0:00:30.9]} 32... Qd8 {[%clk 0:00:31.5]} 33. d7
{[%clk 0:00:29]} 33... Qb6 {[%clk 0:00:26.6]} 34. Qd4 {[%clk 0:00:28.7]} 34...
Qb5+ {[%clk 0:00:21.6]} 35. Qd3 {[%clk 0:00:25]} 35... Qxd3+ {[%clk 0:00:17.8]}
36. Rxd3 {[%clk 0:00:25.9]} 36... Rd8 {[%clk 0:00:18.6]} 37. Nd2 {[%clk
0:00:23]} 37... Kg8 {[%clk 0:00:17.5]} 38. Ne4 {[%clk 0:00:22.9]} 38... Kf8
{[%clk 0:00:16]} 39. Nc5 {[%clk 0:00:23]} 39... Kg8 {[%clk 0:00:10.3]} 40. Nxb7
{[%clk 0:00:21.7]} 40... Rdxd7 {[%clk 0:00:08.5]} 41. Rxd7 {[%clk 0:00:21]}
41... Rg1 {[%clk 0:00:07.7]} 42. Nd6 {[%clk 0:00:18.6]} 42... Ra1 {[%clk
0:00:06.5]} 43. Rxa7 {[%clk 0:00:19]} 1-0

[Event "*** Titled Tuesday Blitz"]
[Site "Chess.com"]
[Date "2020.11.24"]
[Round "6"]
[White "HajduIstvanCM"]
[Black "TC2304"]
[Result "0-1"]
[WhiteElo "1703"]
[BlackElo "2338"]
[TimeControl "180+1"]
[EndTime "11:22:53 PST"]
[Termination "TC2304 won on time"]

1. e4 {[%clk 0:03:00.9]} 1... c5 {[%clk 0:03:00.3]} 2. Nf3 {[%clk 0:03:00.1]}
2... d6 {[%clk 0:03:00.2]} 3. d4 {[%clk 0:02:59.9]} 3... cxd4 {[%clk 0:03:01.1]}
4. Nxd4 {[%clk 0:02:59.9]} 4... Nf6 {[%clk 0:03:01.8]} 5. Nc3 {[%clk 0:02:59.8]}
5... a6 {[%clk 0:03:02.5]} 6. Be2 {[%clk 0:02:59.6]} 6... e5 {[%clk 0:03:02.6]}
7. Nb3 {[%clk 0:02:58]} 7... Be7 {[%clk 0:03:03.2]} 8. a4 {[%clk 0:02:54.1]}
8... O-O {[%clk 0:03:03.2]} 9. O-O {[%clk 0:02:51.2]} 9... Be6 {[%clk
0:03:03.8]} 10. Be3 {[%clk 0:02:50.1]} 10... Nbd7 {[%clk 0:03:03.3]} 11. Qd2
{[%clk 0:02:45]} 11... Rc8 {[%clk 0:02:53.7]} 12. f3 {[%clk 0:02:43.1]} 12...
Nc5 {[%clk 0:02:44.9]} 13. Nxc5 {[%clk 0:02:36.3]} 13... dxc5 {[%clk 0:02:45.8]}
14. Qxd8 {[%clk 0:02:32.5]} 14... Rfxd8 {[%clk 0:02:46.7]} 15. Rfd1 {[%clk
0:02:28.4]} 15... h5 {[%clk 0:02:04.1]} 16. Rxd8+ {[%clk 0:02:15.7]} 16... Rxd8
{[%clk 0:02:03.2]} 17. Rd1 {[%clk 0:02:14.6]} 17... Rxd1+ {[%clk 0:01:59.6]} 18.
Bxd1 {[%clk 0:02:09.1]} 18... Kf8 {[%clk 0:01:57]} 19. Be2 {[%clk 0:02:05.6]}
19... Ke8 {[%clk 0:01:51.2]} 20. Kf2 {[%clk 0:02:04.8]} 20... Kd7 {[%clk
0:01:46.6]} 21. Ke1 {[%clk 0:02:00.3]} 21... Kc6 {[%clk 0:01:46.3]} 22. Kd2
{[%clk 0:01:53.2]} 22... Nd7 {[%clk 0:01:46.3]} 23. b3 {[%clk 0:01:36.8]} 23...
c4 {[%clk 0:01:35.9]} 24. Bxc4 {[%clk 0:01:22.9]} 24... Bxc4 {[%clk 0:01:33.5]}
25. bxc4 {[%clk 0:01:22]} 25... g6 {[%clk 0:01:14.3]} 26. Nd5 {[%clk 0:01:06.4]}
26... Bd8 {[%clk 0:01:05.4]} 27. c3 {[%clk 0:00:45.6]} 27... f5 {[%clk
0:01:02.4]} 28. g3 {[%clk 0:00:38.2]} 28... fxe4 {[%clk 0:01:00.9]} 29. fxe4
{[%clk 0:00:37]} 29... g5 {[%clk 0:00:36.4]} 30. Nb4+ {[%clk 0:00:36.1]} 30...
Kd6 {[%clk 0:00:31.3]} 31. Nd5 {[%clk 0:00:36.1]} 31... g4 {[%clk 0:00:29.1]}
32. Kd3 {[%clk 0:00:31.4]} 32... Nb8 {[%clk 0:00:25.2]} 33. c5+ {[%clk
0:00:24.3]} 33... Kc6 {[%clk 0:00:19.9]} 34. Nb4+ {[%clk 0:00:22.5]} 34... Kd7
{[%clk 0:00:20.2]} 35. Kc4 {[%clk 0:00:16.1]} 35... Ke6 {[%clk 0:00:19.5]} 36.
Kd3 {[%clk 0:00:08.3]} 36... Be7 {[%clk 0:00:16.5]} 37. Kc4 {[%clk 0:00:07.8]}
37... Bf8 {[%clk 0:00:11.9]} 38. Nd5 {[%clk 0:00:06.1]} 38... Nd7 {[%clk
0:00:11]} 39. Nc7+ {[%clk 0:00:05.6]} 39... Ke7 {[%clk 0:00:10]} 40. Nd5+ {[%clk
0:00:05.1]} 40... Kd8 {[%clk 0:00:09.4]} 41. Nb6 {[%clk 0:00:03.8]} 41... Nb8
{[%clk 0:00:09.4]} 42. Kd5 {[%clk 0:00:03.1]} 42... Nc6 {[%clk 0:00:09.5]} 0-1

[Event "*** Titled Tuesday Blitz"]
[Site "Chess.com"]
[Date "2020.11.24"]
[Round "6"]
[White "Taktikmonster"]
[Black "AIROPITO7"]
[Result "0-1"]
[WhiteElo "2132"]
[BlackElo "2562"]
[TimeControl "180+1"]
[EndTime "11:22:54 PST"]
[Termination "AIROPITO7 won on time"]

1. e4 {[%clk 0:03:00.9]} 1... c5 {[%clk 0:02:59]} 2. Nf3 {[%clk 0:02:54]} 2...
e6 {[%clk 0:02:59]} 3. d4 {[%clk 0:02:54.5]} 3... cxd4 {[%clk 0:02:59.4]} 4.
Nxd4 {[%clk 0:02:55.4]} 4... Nf6 {[%clk 0:02:59.8]} 5. Nc3 {[%clk 0:02:54.4]}
5... Nc6 {[%clk 0:02:56.9]} 6. Ndb5 {[%clk 0:02:53.3]} 6... Bc5 {[%clk
0:02:51.8]} 7. Bf4 {[%clk 0:02:43.3]} 7... O-O {[%clk 0:02:51.7]} 8. Bd6 {[%clk
0:02:38.5]} 8... Bxd6 {[%clk 0:02:47.8]} 9. Nxd6 {[%clk 0:02:25]} 9... Qe7
{[%clk 0:02:44.3]} 10. Be2 {[%clk 0:02:14.6]} 10... Ne8 {[%clk 0:02:43.9]} 11.
Ncb5 {[%clk 0:02:10.7]} 11... Nf6 {[%clk 0:02:08.7]} 12. O-O {[%clk 0:02:03.1]}
12... a6 {[%clk 0:02:07.9]} 13. Nc3 {[%clk 0:01:47.7]} 13... Ne8 {[%clk
0:02:06.9]} 14. Nc4 {[%clk 0:01:16.2]} 14... b5 {[%clk 0:02:02.5]} 15. Nb6
{[%clk 0:01:08.3]} 15... Rb8 {[%clk 0:02:02.3]} 16. Nxc8 {[%clk 0:01:07.5]}
16... Rxc8 {[%clk 0:02:03.2]} 17. a4 {[%clk 0:01:00.2]} 17... b4 {[%clk
0:01:57.9]} 18. Na2 {[%clk 0:01:00.6]} 18... a5 {[%clk 0:01:55.1]} 19. c3 {[%clk
0:00:58.3]} 19... Rb8 {[%clk 0:01:52.7]} 20. Bb5 {[%clk 0:00:56.3]} 20... Nc7
{[%clk 0:01:45.2]} 21. Bxc6 {[%clk 0:00:53.1]} 21... dxc6 {[%clk 0:01:44]} 22.
cxb4 {[%clk 0:00:53.1]} 22... axb4 {[%clk 0:01:42.7]} 23. b3 {[%clk 0:00:52.8]}
23... Na6 {[%clk 0:01:34.8]} 24. Nc1 {[%clk 0:00:48.1]} 24... Nc5 {[%clk
0:01:31.1]} 25. Qc2 {[%clk 0:00:48]} 25... Rfd8 {[%clk 0:01:27.9]} 26. Ne2
{[%clk 0:00:40.2]} 26... Rbc8 {[%clk 0:01:05.1]} 27. Rfc1 {[%clk 0:00:34.6]}
27... Nd3 {[%clk 0:01:04.5]} 28. Rd1 {[%clk 0:00:34.7]} 28... Ne5 {[%clk
0:01:03]} 29. Rxd8+ {[%clk 0:00:29.8]} 29... Rxd8 {[%clk 0:01:01.8]} 30. Rd1
{[%clk 0:00:30.3]} 30... Rxd1+ {[%clk 0:00:57.2]} 31. Qxd1 {[%clk 0:00:31.2]}
31... h6 {[%clk 0:00:38.9]} 32. Qd4 {[%clk 0:00:31.2]} 32... Nd7 {[%clk
0:00:36.5]} 33. f3 {[%clk 0:00:26.6]} 33... c5 {[%clk 0:00:32.1]} 34. Qc4 {[%clk
0:00:19.7]} 34... Ne5 {[%clk 0:00:29.9]} 35. Qb5 {[%clk 0:00:20]} 35... Qd6
{[%clk 0:00:30.1]} 36. a5 {[%clk 0:00:19.6]} 36... Qd1+ {[%clk 0:00:30]} 37. Kf2
{[%clk 0:00:20]} 37... Qd2 {[%clk 0:00:22]} 38. a6 {[%clk 0:00:14.6]} 38... Nd3+
{[%clk 0:00:22.2]} 39. Kg3 {[%clk 0:00:09.6]} 39... Qxe2 {[%clk 0:00:21.5]} 40.
a7 {[%clk 0:00:09.6]} 40... Qf2+ {[%clk 0:00:21.6]} 41. Kh3 {[%clk 0:00:09.5]}
41... Ne1 {[%clk 0:00:12.5]} 42. a8=Q+ {[%clk 0:00:08.9]} 42... Kh7 {[%clk
0:00:12.8]} 43. Kg4 {[%clk 0:00:01.7]} 43... g5 {[%clk 0:00:11]} 0-1

[Event "*** Titled Tuesday Blitz"]
[Site "Chess.com"]
[Date "2020.11.24"]
[Round "6"]
[White "Legendinunknown"]
[Black "SergeyShtyka"]
[Result "0-1"]
[WhiteElo "2664"]
[BlackElo "2406"]
[TimeControl "180+1"]
[EndTime "11:22:56 PST"]
[Termination "SergeyShtyka won by checkmate"]

1. d4 {[%clk 0:03:00.9]} 1... c5 {[%clk 0:02:58.5]} 2. d5 {[%clk 0:03:00.1]}
2... e5 {[%clk 0:02:58.7]} 3. e4 {[%clk 0:02:59.6]} 3... d6 {[%clk 0:02:59.1]}
4. Nc3 {[%clk 0:02:57.7]} 4... Be7 {[%clk 0:02:59.5]} 5. f4 {[%clk 0:02:53.9]}
5... exf4 {[%clk 0:02:59.3]} 6. Bxf4 {[%clk 0:02:54.8]} 6... a6 {[%clk
0:02:59.3]} 7. Nf3 {[%clk 0:02:54]} 7... Nf6 {[%clk 0:02:58.5]} 8. a4 {[%clk
0:02:47.8]} 8... O-O {[%clk 0:02:56.9]} 9. Bc4 {[%clk 0:02:46.2]} 9... Nbd7
{[%clk 0:02:43.3]} 10. Qd2 {[%clk 0:02:43.6]} 10... Nh5 {[%clk 0:02:39.2]} 11.
Be3 {[%clk 0:02:39.2]} 11... Bf6 {[%clk 0:02:17.6]} 12. O-O {[%clk 0:02:38.2]}
12... Ne5 {[%clk 0:02:10.1]} 13. Nxe5 {[%clk 0:02:30.4]} 13... Bxe5 {[%clk
0:02:11]} 14. g3 {[%clk 0:02:30.3]} 14... Nf6 {[%clk 0:01:43.4]} 15. Qg2 {[%clk
0:02:14.1]} 15... Ng4 {[%clk 0:01:15]} 16. Bf4 {[%clk 0:01:58.8]} 16... Qe7
{[%clk 0:01:12.7]} 17. Rae1 {[%clk 0:01:54.6]} 17... Bd7 {[%clk 0:01:08]} 18. h3
{[%clk 0:01:42.4]} 18... Bxc3 {[%clk 0:01:07.5]} 19. bxc3 {[%clk 0:01:40.4]}
19... Ne5 {[%clk 0:01:07.3]} 20. Bd3 {[%clk 0:01:12.8]} 20... Bxa4 {[%clk
0:01:05.3]} 21. c4 {[%clk 0:01:11.3]} 21... Bd7 {[%clk 0:01:03.7]} 22. g4 {[%clk
0:01:07.6]} 22... b5 {[%clk 0:01:02.8]} 23. cxb5 {[%clk 0:01:06.6]} 23... axb5
{[%clk 0:01:03.5]} 24. Qg3 {[%clk 0:01:06.6]} 24... f6 {[%clk 0:01:01.8]} 25. g5
{[%clk 0:01:02]} 25... c4 {[%clk 0:00:55.2]} 26. Be2 {[%clk 0:00:47.7]} 26...
Rae8 {[%clk 0:00:54.6]} 27. Bh5 {[%clk 0:00:20.9]} 27... g6 {[%clk 0:00:46.6]}
28. gxf6 {[%clk 0:00:21]} 28... Rxf6 {[%clk 0:00:39.3]} 29. Bg4 {[%clk
0:00:19.4]} 29... Bxg4 {[%clk 0:00:31.7]} 30. hxg4 {[%clk 0:00:20.3]} 30... Rff8
{[%clk 0:00:21.8]} 31. Bh6 {[%clk 0:00:16.7]} 31... Rxf1+ {[%clk 0:00:20.9]} 32.
Rxf1 {[%clk 0:00:17.6]} 32... Qd7 {[%clk 0:00:17.7]} 33. Rf4 {[%clk 0:00:16.4]}
33... Qe7 {[%clk 0:00:13.8]} 34. Qf2 {[%clk 0:00:15.9]} 34... Nf7 {[%clk
0:00:11.8]} 35. g5 {[%clk 0:00:14.4]} 35... Nxh6 {[%clk 0:00:04.6]} 36. gxh6
{[%clk 0:00:15.3]} 36... Rf8 {[%clk 0:00:05.1]} 37. Rxf8+ {[%clk 0:00:14.5]}
37... Qxf8 {[%clk 0:00:05.2]} 38. Qg3 {[%clk 0:00:15.4]} 38... Qxh6 {[%clk
0:00:03.7]} 39. Qxd6 {[%clk 0:00:15.1]} 39... Qc1+ {[%clk 0:00:03.9]} 40. Kg2
{[%clk 0:00:15.1]} 40... Qxc2+ {[%clk 0:00:04.8]} 41. Kf3 {[%clk 0:00:15.6]}
41... Qd3+ {[%clk 0:00:05]} 42. Kf4 {[%clk 0:00:15.8]} 42... Qf1+ {[%clk
0:00:05]} 43. Ke5 {[%clk 0:00:15.1]} 43... Qf7 {[%clk 0:00:04.9]} 44. Qb8+
{[%clk 0:00:14.2]} 44... Kg7 {[%clk 0:00:05.1]} 45. Qxb5 {[%clk 0:00:14.6]}
45... Qf6# {[%clk 0:00:04.9]} 0-1